Cogmind - Beta 9.6 @@@ ROGUE MODE // 2020.04.20 @ 19:54:22 Player: Faust Result: Destroyed by S-10 Pest with Light Assault Rifle Performance ------------- Evolutions (0) 0 Regions Visited (1) 200 Robots Destroyed (44) 220 Value Destroyed (1032) 1032 Prototype IDs (4) 80 Alien Tech Used (0) 0 Bonus (24) 24 TOTAL SCORE: 1556 Bonus ------- High Alert Combat Kills 24 Cogmind --------- Core Integrity 0/250 Matter 88/300 Energy 160/160 System Corruption 0% Temperature Cool (0) Movement Walking (150) Ox1 Location -10/Materials Parts ------- > --- POWER (1) -------- Light Nuclear Core > --- PROPULSION (2) --- Improved Aluminum Leg Improved Aluminum Leg > --- UTILITY (2) ------ High-capacity Storage Unit Hardened Light Armor Plating > --- WEAPON (2) ------- Light Cannon Grenade Launcher > --- INVENTORY (12) --- Ion Engine Improved Heat Sink Large Storage Unit Structural Scanner Signal Interpreter Hardened Light Armor Plating EM Shotgun EM Shotgun Grenade Launcher Datajack Welding Torch Peak State ------------ > --- POWER ------------ Light Nuclear Core > --- PROPULSION ------- Improved Aluminum Leg Improved Aluminum Leg > --- UTILITY ---------- High-capacity Storage Unit High-capacity Matter Pod > --- WEAPON ----------- Shotgun Shotgun > --- INVENTORY -------- Ion Engine Improved Heat Sink Structural Scanner Signal Interpreter EM Shotgun EM Shotgun Datajack [Rating: 14] Favorites ----------- Power Ion Engine Engine Ion Engine Power Core Light Nuclear Core Propulsion Improved Aluminum Leg Treads Light Treads Leg Improved Aluminum Leg Wheel Wheel Utility High-capacity Matter Pod Device Heat Sink Storage High-capacity Matter Pod Protection Hardened Light Armor Plating Weapon Light Cannon Energy Gun Medium Laser Ballistic Gun Shotgun Ballistic Cannon Light Cannon Launcher Grenade Launcher Special Melee Weapon Datajack Build | -11 -10 ------- Run | Scr Mat Slots Evolved . | . . Power . | . . Propulsion . | . . Utility . | . . Weapon . | . . Parts Attached 43 | 9 34 Power 10 | 1 9 Engine 9 | 1 8 Core 1 | . 1 Reactor . | . . Propulsion 10 | 4 6 Treads 2 | . 2 Leg 6 | 2 4 Wheel 2 | 2 . Hover . | . . Flight . | . . Utility 9 | 2 7 Device 4 | 1 3 Storage 4 | 1 3 Processor . | . . Hackware . | . . Protection 1 | . 1 Artifact . | . . Weapon 14 | 2 12 Energy Gun 2 | 1 1 Energy Cannon . | . . Ballistic Gun 3 | 1 2 Ballistic Cannon 3 | . 3 Launcher 5 | . 5 Special Weapon . | . . Impact Weapon . | . . Slashing Weapon . | . . Piercing Weapon . | . . Special Melee Weapon 1 | . 1 Unidentified Prototypes . | . . Parts Lost 3 | . 3 Power . | . . Propulsion 1 | . 1 Utility . | . . Weapon 2 | . 2 Highest Loss Streak 1 | . 1 Average Slot Usage (%) 98 | . 98 Engine 10 | . 10 Core 3 | . 3 Treads 7 | . 7 Leg 20 | . 20 Device 7 | . 7 Storage 18 | . 18 Protection 2 | . 2 Energy Gun 1 | . 1 Ballistic Gun 2 | . 2 Ballistic Cannon 11 | . 11 Launcher 11 | . 11 Naked Turns . | . . Heaviest Build 48 | 10 48 Greatest Support 40 | 20 40 Greatest Overweight (x) 3 | . 3 Average Overweight (x) . | . . Largest Inventory Capacity 12 | 4 12 Average Capacity 7 | 4 7 Most Carried 11 | 4 11 Average Carried 5 | 2 5 Final Capacity 12 | 4 12 Final Carried 11 | 3 11 Class Distribution -------------------- 100% | Mutant Dominant Class ---------------- Mutant | -10/Materials Resources | -11 -10 ----------- Run | Scr Mat Matter Collected 1079 | 340 739 Remotely . | . . Salvage Created 866 | 71 795 Parts 71 | 5 66 Haulers Intercepted 2 | . 2 Recyclers Shooed 1 | . 1 Parts Field Recycled . | . . Retrieved Matter . | . . Parts Self-Destructed . | . . Prevented . | . . Kills | -11 -10 ------- Run | Scr Mat Combat Hostiles Destroyed 29 | 1 28 Guns 4 | 1 3 Cannons 4 | . 4 AOE 21 | . 21 Classes Destroyed 8 | 2 6 Worker 5 | 1 4 Tunneler 1 | . 1 Hauler 2 | . 2 Recycler 2 | . 2 Operator 2 | . 2 Watcher 3 | . 3 Swarmer 6 | . 6 Grunt 23 | 1 22 Best Kill Streak 5 | 1 5 Combat Bots Only 4 | 1 4 Max Kills in Single Turn 3 | 1 3 Gunslinging . | . . Exploded 3 | . 3 Melee . | . . Uniques/NPCs Destroyed . | . . Combat | -11 -10 -------- Run | Scr Mat Damage Taken 1293 | 70 1223 Core 251 | . 251 Absorbed by Shields . | . . Core Remaining (%) 100 | 100 . Volleys Fired 87 | 5 82 Largest 2 | 2 2 Hottest 75 | 70 75 Shots Fired 142 | 10 132 Gun 42 | 10 32 Cannon 63 | . 63 Launcher 37 | . 37 Special . | . . Kinetic 94 | 5 89 Thermal 5 | 5 . Explosive 37 | . 37 Electromagnetic 6 | . 6 Robot Hit Streak 7 | 6 7 Robot Miss Streak 4 | 1 4 Penetration Max . | . . Secondary Targets . | . . Shots Hit Robots 83 | 7 76 Core Hits 65 | 3 62 Critical Hits 1 | . 1 Critical Kills 1 | . 1 Critical Parts Destroyed . | . . Melee Attacks 4 | . 4 Impact . | . . Slashing . | . . Piercing . | . . Sneak Attacks . | . . Combat Hostiles . | . . Follow-up Attacks . | . . Damage Inflicted 2826 | 88 2738 Guns 351 | 88 263 Cannons 578 | . 578 Explosions 1897 | . 1897 Melee . | . . Ramming . | . . Kinetic 841 | 39 802 Thermal 49 | 49 . Explosive 1897 | . 1897 Electromagnetic 39 | . 39 Impact . | . . Slashing . | . . Piercing . | . . Highest Corruption . | . . Average Corruption . | . . Corruption Purged . | . . Overload Shots . | . . Overflow Damage 72 | . 72 Projectiles 10 | . 10 Explosions 62 | . 62 Melee . | . . Knockbacks 7 | . 7 Impact . | . . Kinetic 7 | . 7 Secondary . | . . Self-Inflicted Damage 175 | . 175 Shots 9 | . 9 Rammed . | . . Targets Rammed . | . . Kicked . | . . Crushed . | . . Highest Temperature 150 | 66 150 Average Temperature 31 | 32 31 Received Heat Transfer 549 | 36 513 Siege Activations . | . . Robots Corrupted . | . . Combat Hostiles . | . . Parts Fried 1 | . 1 Impact Corruptions . | . . Robots Melted . | . . Combat Hostiles . | . . Parts Melted . | . . Heat Transferred 148 | 148 . Parts Sabotaged . | . . Parts Stolen . | . . Parts Stripped . | . . Power Chain Reactions . | . . Missiles Intercepted . | . . Alert | -11 -10 ------- Run | Scr Mat Peak Influence 458 | 25 458 Average Influence 201 | 7 217 Maximum Alert Level 2 | . 2 Low Security (%) 52 | 100 48 Level 1 42 | . 46 Level 2 4 | . 5 Level 3 . | . . Level 4 . | . . Level 5 . | . . High Security . | . . Max Security . | . . Squads Dispatched 6 | . 6 Investigation 3 | . 3 Extermination . | . . Reinforcement 3 | . 3 Assault . | . . Garrison . | . . Intercept . | . . Construction Impeded . | . . Haulers Reinforced . | . . Stealth | -11 -10 --------- Run | Scr Mat Distress Signals . | . . Communications Jammed . | . . Distress Signals . | . . Times Spotted 47 | 1 46 Peak Tracking Total 3 | 1 3 Tactical Retreats 4 | . 4 Traps | -11 -10 ------- Run | Scr Mat Traps Triggered 4 | . 4 Indirectly . | . . Trap Hack Attempts . | . . Triggered . | . . Disarmed . | . . Reprogrammed . | . . Reused . | . . Traps Extracted . | . . Installed . | . . Triggered . | . . Machines | -11 -10 ---------- Run | Scr Mat Machines Disabled 3 | . 3 Max in Single Turn 1 | . 1 Machines Sabotaged . | . . Garrisons Compromised . | . . Overloaded Fab Kills . | . . Fab Network Shutdowns . | . . Hacking | -11 -10 --------- Run | Scr Mat Machines Accessed 6 | . 6 Terminals 5 | . 5 Fabricators . | . . Repair Stations 1 | . 1 Recycling Units . | . . Scanalyzers . | . . Garrison Access . | . . Total Hacks 20 | . 20 Successful 15 | . 15 Failed 5 | . 5 Catastrophic . | . . Database Lockouts . | . . Manual . | . . Terminals 17 | . 17 Fabricators . | . . Repair Stations 3 | . 3 Recycling Units . | . . Scanalyzers . | . . Garrison Access . | . . Terminal Hacks 12 | . 12 Record 4 | . 4 Prototype ID Bank 3 | . 3 Emergency Access Points 1 | . 1 Locate Traps 1 | . 1 Dispatch Records 1 | . 1 Hauler Manifests 1 | . 1 Registered Components 1 | . 1 Fabricator Hacks . | . . Repair Station Hacks 3 | . 3 Scan Component 2 | . 2 Repair 1 | . 1 Recycling Unit Hacks . | . . Scanalyzer . | . . Garrison Access Hacks . | . . Unauthorized Hacks . | . . Terminals . | . . Fabricators . | . . Repair Stations . | . . Recycling Units . | . . Scanalyzers . | . . Garrison Access . | . . Data Cores Recovered 1 | . 1 Used . | . . Hacking Detections 4 | . 4 Full Trace Events 3 | . 3 Feedback Events . | . . Feedback Blocked . | . . Robot Schematics Acquired . | . . Robots Built . | . . Matter . | . . Time . | . . Total Robot Build Rating . | . . Part Schematics Acquired . | . . Parts Built . | . . Matter . | . . Time . | . . Total Part Build Rating . | . . Parts Repaired 1 | . 1 Time 26 | . 26 Parts Recycled . | . . Recycled Matter . | . . Retrieved Matter . | . . Retrieved Components . | . . Parts Scanalyzed . | . . Part Schematics Acquired . | . . Parts Damaged . | . . Bothacking | -11 -10 ------------ Run | Scr Mat Used RIF Installer . | . . Robots Hacked 2 | . 2 Non-combat . | . . Combat 2 | . 2 Robot Hacks Applied 2 | . 2 parse_system 2 | . 2 Relay Couplers Released . | . . Robots Rewired . | . . Allies Hacked . | . . Hacks Repelled . | . . Allies | -11 -10 -------- Run | Scr Mat Total Allies . | . . Largest Group . | . . Highest-Rated Group . | . . Highest-Rated Ally . | . . Total Orders . | . . Ally Attacks . | . . Total Damage . | . . Kills . | . . Allies Corrupted . | . . Allies Melted . | . . Intel | -11 -10 ------- Run | Scr Mat Robot Analysis Total . | . . Derelict Logs Recovered . | . . Drone Launches . | . . Drone Recoveries . | . . Exploration | -11 -10 ------------- Run | Scr Mat Turns Passed 2011 | 153 1858 Spaces Moved 1138 | 107 1031 Core 18 | 18 . Treads 257 | . 257 Legs 854 | 80 774 Wheels 9 | 9 . Hover . | . . Flight . | . . Fastest Speed 50 | 50 120 Average Speed 141 | 104 145 Slowest Speed 210 | 120 210 Overloaded Moves . | . . Propulsion Burnouts . | . . Robots Hopped . | . . Cave-ins Triggered . | . . Exploration Rate (%) 50 | 6 94 Regions Visited 1 Branch Regions . Pre-discovered Areas . | . . Known Exits Taken . | . . Unknown Exits Taken 1 | 1 . Scrap Searched . | . . Spaces Dug 10 | . 10 Terrain Destroyed 227 | . 227 Melee . | . . Projectile . | . . AOE 227 | . 227 Actions | -11 -10 --------- Run | Scr Mat Total 1387 | 137 1250 Wait 38 | 4 34 Move 1137 | 106 1031 Hop . | . . Pick Up 49 | 11 38 Fast Attach 2 | 1 1 Attach 10 | 6 4 Detach . | . . Swap 31 | 2 29 Drop 29 | 2 27 Fire 87 | 5 82 Melee 4 | . 4 Ram . | . . Kick . | . . Crush . | . . Escape Stasis . | . . Rewire . | . . Trap . | . . Miscellaneous . | . . Route ------- -11/Scrapyard -10/Materials (discovered 4 exits: [*Mat x3] / [*Min]) History --------- Turn | Location | Event 2 | -11/Scrapyard | Met Revision 17 89 | -11/Scrapyard | Discovered new exit (range 8) 154 | -11/Scrapyard | Entered Materials 347 | -10/Materials | Build established: Mutant 547 | -10/Materials | Discovered new exit (range 8) 728 | -10/Materials | Discovered new exit (range 13) 1006 | -10/Materials | Repaired Grenade Launcher 1160 | -10/Materials | Discovered new exit (range 6) 1210 | -10/Materials | Discovered new exit (range 9) 1345 | -10/Materials | Core integrity fell below 50% 1463 | -10/Materials | Core integrity fell below 20% 2012 | -10/Materials | Destroyed by S-10 Pest with Light Assault Rifle Last Messages --------------- An explosion rips through the floor. Acquired 30 matter. Acquired 34 matter. K-01 Serf collects debris. Terminal unresponsive. U-05 Engineer lays Concrete. Acquired Lrg. Storage Unit. Acquired Welding Torch. Acquired Grenade Launcher. Connecting with Terminal... >>Prototypes Downloading prototype IDs... Hvy. Ion Engine Adv. Beam Cannon >>Enumerate(Squads) Retrieving dispatch records... No active records found. Once familiar with the basic mechanics, press ESC then '3' to read the in-game manual for more details. [Achievement: First Step to Greatness] Map ----- +----------------------------------------------------+ | | | | | | | | | | | | | | | | | | | | | | | | | ??????????????????????????????????????????????? | | ??????????????????????????########????????????? | | ??????????????????????????# #????????????? | | ??????????????????????????# #????????????? | | ???????????????????######?# ! #????????????? | | ??????????????????##! !!### |#????????????? | | ??????????????????#! !## |#????????????? | | ??????????????????#! !## #????????????? | | ?????????????????## #####+###????????????? | | ????????########## #????????????? | | ????????# s #???#####????? | | ????????# < #############/####+####?##"""##???? | | ????????# # ## ## ###"!!!"##??? | | ????????# + ## !@## """ ##"" ""#??? | | ????????# # !![## ## "T" ## #??? | | ????????# # ![[##! ## ## < #??? | | #######?# # ![ ## ## ## #??? | | [ [ #?# # ## ## [ ## #??? | | [ #?# ######### ########### ##??? | | ### ##??????# ! ########??## ##???? | | ### ##??????# ## ##### #????? | | ##??????# ## #????? | | ##??????# ?# #????? | | ##??????# ! ?# #????? | | ####/##### ##??????######?# #########????? | | ## ### ##?????????????## ##????????????? | | ## #?# ##??????????????# #?????????????? | | ## #?# #???????????????# #?????????????? | | ## #?# #???????????????# #?????????????? | | ## """ #?# #?????????????### ###???????????? | | ## """ #?# #?????????????# #???????????? | | ## """ ### ##????????????# < #???????????? | | ## ### ###???????????# #####???????? | | ## """ ## ##???????????# # ## # ###?????? | | ## """ ## ##???????????# # #?????? | | ## """ ## ! ##???????????# # #?????? | | ## ## ##???????????# =+ #?????? | | ######### ##???????????# [ # = "T" #?????? | +----------------------------------------------------+ Best States ------------- Heat Dissipation 35 Energy Generation 14 Energy Capacity 250 Matter Stores 479 Matter Capacity 500 Sight Range 16 Terrain Scan Density 10 Armor Coverage 150 Evasion (%) 50 Recoil Reduction 2 Item Schematics ----------------- None Robot Schematics ------------------ None Fabricated ------------ Nothing Alien Tech Used ----------------- None Achievements -------------- First Step to Greatness Loot Pinata One Hack Too Far Part-time Mechanic Remodeling Shopping List Uninvited Guest Challenges ------------ None Game ------ Seed MatterDerelictSystem Manual? 0 Play Time 00:47:59 Cumulative 1.5 hours Start 2020.04.20 @ 19:02:29 End 2020.04.20 @ 19:54:22 Sessions 1 Manual Loads 0 Difficulty Rogue Special Mode None Game No. 1 Rogue 1 Adventurer 0 Explorer 0 Win Type - Total 0 Types 0/0/0/0/0/0/0 Lore% 0 Gallery% 2 Achievement% 2 Wizard Run 0 Options --------- ASCII 0 Keyboard 0 Movement Mouse Keybinds 0 Fullscreen 1 Font 18/SmallcapsGlow Map View 76x50 Tactical HUD 0 Map Filters NONE Filters NONE Steam 1 RUN: daa8e1e6-4696-4ce1-9e6b-202514a2ab58